[Event "Titled Tuesday Blitz May 23 Early 2023"]
[White "Siva Mahadevan"]
[Black "Melian, Juan Sebastian"]
[WhiteFideId "25043153"]
[BlackFideId "3706575"]
[WhiteElo "2249"]
[BlackElo "2092"]
[Result "1-0"]
[Round "02"]
[TimeControl "180+2"]
[Date "2023.05.23"]
[WhiteClock "0:00:16"]
[BlackClock "0:00:02"]

1. e4 {[%clk 0:03:00]}  e5 {[%clk 0:02:53]} 2. Nf3 {[%clk 0:03:00]}  Nc6 {[%clk 0:02:53]} 3. Bb5 {[%clk 0:03:01]}  a6 {[%clk 0:02:53]} 4. Ba4 {[%clk 0:03:01]}  Nf6 {[%clk 0:02:53]} 5. O-O {[%clk 0:03:02]}  Nxe4 {[%clk 0:02:47]} 6. d4 {[%clk 0:03:02]}  b5 {[%clk 0:02:37]} 7. Bb3 {[%clk 0:03:02]}  d5 {[%clk 0:02:37]} 8. dxe5 {[%clk 0:03:02]}  Be7 {[%clk 0:02:37]} 9. Be3 {[%clk 0:02:59]}  Be6 {[%clk 0:02:32]} 10. c3 {[%clk 0:03:00]}  O-O {[%clk 0:02:23]} 11. Nbd2 {[%clk 0:02:56]}  Nxd2 {[%clk 0:01:42]} 12. Qxd2 {[%clk 0:02:54]}  Na5 {[%clk 0:01:42]} 13. Bc2 {[%clk 0:01:56]}  c5 {[%clk 0:01:32]} 14. b3 {[%clk 0:01:55]}  Qd7 {[%clk 0:01:09]} 15. Rad1 {[%clk 0:01:51]}  Rfd8 {[%clk 0:01:07]} 16. c4 {[%clk 0:01:08]}  Nc6 {[%clk 0:00:50]} 17. cxd5 {[%clk 0:01:08]}  Bxd5 {[%clk 0:00:51]} 18. Be4 {[%clk 0:01:08]}  Nd4 {[%clk 0:00:08]} 19. Bxd5 {[%clk 0:01:01]}  Qxd5 {[%clk 0:00:09]} 20. Bxd4 {[%clk 0:00:42]}  cxd4 {[%clk 0:00:08]} 21. Qxd4 {[%clk 0:00:42]}  Qc6 {[%clk 0:00:09]} 22. Qg4 {[%clk 0:00:41]}  Qc2 {[%clk 0:00:08]} 23. Nd4 {[%clk 0:00:40]}  Qg6 {[%clk 0:00:03]} 24. Qf3 {[%clk 0:00:35]}  Re8 {[%clk 0:00:03]} 25. Nf5 {[%clk 0:00:29]}  Bf8 {[%clk 0:00:02]} 26. Rfe1 {[%clk 0:00:29]}  Rad8 {[%clk 0:00:02]} 27. Rxd8 {[%clk 0:00:29]}  Rxd8 {[%clk 0:00:03]} 28. h4 {[%clk 0:00:30]}  Qe6 {[%clk 0:00:03]} 29. h5 {[%clk 0:00:30]}  g6 {[%clk 0:00:03]} 30. Ng3 {[%clk 0:00:27]}  Be7 {[%clk 0:00:03]} 31. Qf4 {[%clk 0:00:24]}  Qd5 {[%clk 0:00:03]} 32. Ne4 {[%clk 0:00:23]}  Qe6 {[%clk 0:00:02]} 33. h6 {[%clk 0:00:22]}  Re8 {[%clk 0:00:02]} 34. Rd1 {[%clk 0:00:22]}  Rd8 {[%clk 0:00:03]} 35. Rc1 {[%clk 0:00:21]}  Rd7 {[%clk 0:00:03]} 36. Rc8+ {[%clk 0:00:21]}  Rd8 {[%clk 0:00:03]} 37. Rc7 {[%clk 0:00:21]}  Re8 {[%clk 0:00:03]} 38. g3 {[%clk 0:00:18]}  Bd8 {[%clk 0:00:03]} 39. Ra7 {[%clk 0:00:16]}  Be7 {[%clk 0:00:03]} 40. Kg2 {[%clk 0:00:16]}  Qb6 {[%clk 0:00:03]} 41. Rd7 {[%clk 0:00:14]}  Qc6 {[%clk 0:00:04]} 42. Rd3 {[%clk 0:00:15]}  Rf8 {[%clk 0:00:04]} 43. Rf3 {[%clk 0:00:15]}  Qe6 {[%clk 0:00:03]} 44. Ng5 {[%clk 0:00:15]}  Bxg5 {[%clk 0:00:03]} 45. Qxg5 {[%clk 0:00:16]}  Qd5 {[%clk 0:00:02]} 46. Qf6 {[%clk 0:00:16]} 1-0


[Site "https://www.chess.com"]

[Event "Titled Tuesday Blitz May 23 Early 2023"]
[White "Baghdasaryan, Vahe"]
[Black "Bondau"]
[WhiteFideId "13303139"]
[WhiteElo "2216"]
[BlackElo "2826"]
[Result "0-1"]
[Round "02"]
[TimeControl "180+2"]
[Date "2023.05.23"]
[WhiteClock "0:00:00"]
[BlackClock "0:00:10"]

1. e4 {[%clk 0:03:00]}  c5 {[%clk 0:02:58]} 2. Nf3 {[%clk 0:02:59]}  d6 {[%clk 0:02:58]} 3. d4 {[%clk 0:02:59]}  cxd4 {[%clk 0:02:59]} 4. Nxd4 {[%clk 0:02:59]}  Nf6 {[%clk 0:02:59]} 5. Nc3 {[%clk 0:03:00]}  a6 {[%clk 0:02:57]} 6. Bg5 {[%clk 0:02:59]}  e6 {[%clk 0:02:57]} 7. f4 {[%clk 0:02:59]}  h6 {[%clk 0:02:56]} 8. Bh4 {[%clk 0:02:58]}  Qb6 {[%clk 0:02:57]} 9. Bf2 {[%clk 0:02:58]}  Qxb2 {[%clk 0:02:48]} 10. Na4 {[%clk 0:02:52]}  Qa3 {[%clk 0:02:16]} 11. c4 {[%clk 0:01:30]}  Bd7 {[%clk 0:01:55]} 12. Qb3 {[%clk 0:00:36]}  Qxa4 {[%clk 0:00:57]} 13. Qxb7 {[%clk 0:00:35]}  Qa5+ {[%clk 0:00:34]} 14. Ke2 {[%clk 0:00:34]}  Be7 {[%clk 0:00:28]} 15. Qxa8 {[%clk 0:00:22]}  O-O {[%clk 0:00:28]} 16. Qb7 {[%clk 0:00:23]}  Qc3 {[%clk 0:00:27]} 17. Rd1 {[%clk 0:00:19]}  Ba4 {[%clk 0:00:27]} 18. Rd3 {[%clk 0:00:13]}  Qxc4 {[%clk 0:00:24]} 19. Qxe7 {[%clk 0:00:13]}  Nxe4 {[%clk 0:00:22]} 20. Kf3 {[%clk 0:00:12]}  Nc5 {[%clk 0:00:12]} 21. Rd2 {[%clk 0:00:04]}  Qc3+ {[%clk 0:00:11]} 22. Be3 {[%clk 0:00:04]}  Nc6 {[%clk 0:00:09]} 23. Nxc6 {[%clk 0:00:02]}  Bxc6+ {[%clk 0:00:09]} 24. Kf2 {[%clk 0:00:03]}  Ne4+ {[%clk 0:00:10]} 25. Ke2 {[%clk 0:00:03]}  Bb5+ {[%clk 0:00:09]} 26. Ke1 {[%clk 0:00:03]}  Qxe3+ {[%clk 0:00:09]} 27. Be2 {[%clk 0:00:03]}  Qxd2+ {[%clk 0:00:09]} 28. Kf1 {[%clk 0:00:00]}  Qxe2+ {[%clk 0:00:10]} 0-1


[Site "https://www.chess.com"]

[Event "Titled Tuesday Blitz May 23 Early 2023"]
[White "Salinas Herrera, Pablo"]
[Black "Toncheva, Nadya"]
[WhiteFideId "3407128"]
[BlackFideId "2924056"]
[WhiteElo "2546"]
[BlackElo "2101"]
[Result "1-0"]
[Round "02"]
[TimeControl "180+2"]
[Date "2023.05.23"]
[WhiteClock "0:00:09"]
[BlackClock "0:00:07"]

1. d4 {[%clk 0:03:00]}  d5 {[%clk 0:02:59]} 2. c4 {[%clk 0:03:00]}  dxc4 {[%clk 0:03:00]} 3. Nf3 {[%clk 0:02:59]}  Nf6 {[%clk 0:02:59]} 4. e3 {[%clk 0:02:59]}  e6 {[%clk 0:03:00]} 5. Bxc4 {[%clk 0:02:59]}  c5 {[%clk 0:03:00]} 6. O-O {[%clk 0:02:59]}  a6 {[%clk 0:03:00]} 7. Bb3 {[%clk 0:02:59]}  Nc6 {[%clk 0:02:58]} 8. Nc3 {[%clk 0:02:56]}  Qc7 {[%clk 0:02:56]} 9. Qe2 {[%clk 0:02:54]}  Be7 {[%clk 0:02:56]} 10. Rd1 {[%clk 0:02:54]}  O-O {[%clk 0:02:55]} 11. a3 {[%clk 0:02:41]}  b5 {[%clk 0:02:54]} 12. Bd2 {[%clk 0:02:38]}  cxd4 {[%clk 0:02:40]} 13. exd4 {[%clk 0:02:38]}  Bb7 {[%clk 0:02:39]} 14. Rac1 {[%clk 0:02:38]}  Rac8 {[%clk 0:02:24]} 15. Bg5 {[%clk 0:02:36]}  Rfe8 {[%clk 0:01:52]} 16. Ne5 {[%clk 0:02:06]}  Qb8 {[%clk 0:01:26]} 17. Nxf7 {[%clk 0:01:45]}  Kxf7 {[%clk 0:00:41]} 18. Qxe6+ {[%clk 0:01:44]}  Kg6 {[%clk 0:00:42]} 19. h4 {[%clk 0:00:57]}  Bd6 {[%clk 0:00:09]} 20. Qf7+ {[%clk 0:00:36]}  Kf5 {[%clk 0:00:08]} 21. Bc2+ {[%clk 0:00:25]}  Kg4 {[%clk 0:00:08]} 22. Qxg7 {[%clk 0:00:17]}  Nh5 {[%clk 0:00:06]} 23. f3+ {[%clk 0:00:08]}  Kg3 {[%clk 0:00:06]} 24. Bf4+ {[%clk 0:00:09]}  Kxf4 {[%clk 0:00:07]} 25. Qg5# {[%clk 0:00:09]} 1-0


[Site "https://www.chess.com"]

[Event "Titled Tuesday Blitz May 23 Early 2023"]
[White "Saya, Ethan"]
[Black "Mahdavi, Reza"]
[WhiteFideId "26095181"]
[BlackFideId "12595926"]
[WhiteElo "2164"]
[BlackElo "2352"]
[Result "0-1"]
[Round "02"]
[TimeControl "180+2"]
[Date "2023.05.23"]
[WhiteClock "0:00:01"]
[BlackClock "0:00:54"]

1. d4 {[%clk 0:02:48]}  Nf6 {[%clk 0:02:59]} 2. c4 {[%clk 0:02:47]}  e6 {[%clk 0:02:59]} 3. Nc3 {[%clk 0:02:44]}  d5 {[%clk 0:02:57]} 4. cxd5 {[%clk 0:02:42]}  exd5 {[%clk 0:02:58]} 5. Bg5 {[%clk 0:02:42]}  c6 {[%clk 0:02:47]} 6. e3 {[%clk 0:02:42]}  h6 {[%clk 0:02:45]} 7. Bh4 {[%clk 0:02:39]}  Be7 {[%clk 0:02:45]} 8. Bd3 {[%clk 0:02:37]}  O-O {[%clk 0:02:44]} 9. Nge2 {[%clk 0:02:33]}  Ne8 {[%clk 0:02:39]} 10. Bxe7 {[%clk 0:02:16]}  Qxe7 {[%clk 0:02:40]} 11. O-O {[%clk 0:02:12]}  Nd6 {[%clk 0:02:28]} 12. Qc2 {[%clk 0:01:58]}  Nd7 {[%clk 0:02:23]} 13. b4 {[%clk 0:01:47]}  Nb6 {[%clk 0:02:07]} 14. b5 {[%clk 0:01:36]}  Bd7 {[%clk 0:02:03]} 15. bxc6 {[%clk 0:01:36]}  Bxc6 {[%clk 0:02:04]} 16. a4 {[%clk 0:01:28]}  Nbc4 {[%clk 0:02:03]} 17. Rfb1 {[%clk 0:01:07]}  Rac8 {[%clk 0:01:56]} 18. Bxc4 {[%clk 0:00:50]}  Nxc4 {[%clk 0:01:52]} 19. Nf4 {[%clk 0:00:50]}  Na3 {[%clk 0:01:33]} 20. Ncxd5 {[%clk 0:00:34]}  Qd6 {[%clk 0:01:22]} 21. Rxa3 {[%clk 0:00:25]}  Qxa3 {[%clk 0:01:23]} 22. Qb3 {[%clk 0:00:20]}  Qd6 {[%clk 0:00:56]} 23. Qb4 {[%clk 0:00:19]}  Qxb4 {[%clk 0:00:53]} 24. Nxb4 {[%clk 0:00:19]}  Be4 {[%clk 0:00:48]} 25. Re1 {[%clk 0:00:14]}  Rc4 {[%clk 0:00:47]} 26. Nbd5 {[%clk 0:00:12]}  Rd8 {[%clk 0:00:48]} 27. Ne7+ {[%clk 0:00:03]}  Kf8 {[%clk 0:00:48]} 28. Neg6+ {[%clk 0:00:02]}  Bxg6 {[%clk 0:00:48]} 29. Nxg6+ {[%clk 0:00:02]}  fxg6 {[%clk 0:00:49]} 30. Rb1 {[%clk 0:00:02]}  Rdc8 {[%clk 0:00:49]} 31. g3 {[%clk 0:00:02]}  Rc1+ {[%clk 0:00:50]} 32. Rxc1 {[%clk 0:00:02]}  Rxc1+ {[%clk 0:00:51]} 33. Kg2 {[%clk 0:00:03]}  Ra1 {[%clk 0:00:52]} 34. d5 {[%clk 0:00:03]}  Rxa4 {[%clk 0:00:52]} 35. d6 {[%clk 0:00:04]}  Rc4 {[%clk 0:00:52]} 36. d7 {[%clk 0:00:05]}  Ke7 {[%clk 0:00:53]} 37. d8=Q+ {[%clk 0:00:01]}  Kxd8 {[%clk 0:00:54]} 0-1


[Site "https://www.chess.com"]

[Event "Titled Tuesday Blitz May 23 Early 2023"]
[White "Shevtchenko, Olesya"]
[Black "Pranav Anand"]
[WhiteFideId "24131890"]
[BlackFideId "46626786"]
[WhiteElo "2003"]
[BlackElo "2389"]
[Result "0-1"]
[Round "02"]
[TimeControl "180+2"]
[Date "2023.05.23"]
[WhiteClock "0:00:44"]
[BlackClock "0:01:26"]

1. e4 {[%clk 0:02:56]}  c5 {[%clk 0:02:59]} 2. Nf3 {[%clk 0:02:56]}  Nc6 {[%clk 0:02:59]} 3. d4 {[%clk 0:02:57]}  cxd4 {[%clk 0:03:00]} 4. Nxd4 {[%clk 0:02:56]}  Nf6 {[%clk 0:03:01]} 5. Nc3 {[%clk 0:02:55]}  e5 {[%clk 0:03:01]} 6. Ndb5 {[%clk 0:02:55]}  d6 {[%clk 0:03:02]} 7. Nd5 {[%clk 0:02:56]}  Nxd5 {[%clk 0:03:02]} 8. exd5 {[%clk 0:02:56]}  Nb8 {[%clk 0:03:03]} 9. Qf3 {[%clk 0:02:55]}  Nd7 {[%clk 0:03:00]} 10. Qa3 {[%clk 0:02:32]}  Nc5 {[%clk 0:02:59]} 11. b4 {[%clk 0:02:31]}  Na6 {[%clk 0:02:59]} 12. Be3 {[%clk 0:02:30]}  Nc7 {[%clk 0:02:47]} 13. Bxa7 {[%clk 0:02:19]}  Nxb5 {[%clk 0:02:35]} 14. Bxb5+ {[%clk 0:02:20]}  Bd7 {[%clk 0:02:36]} 15. Bxd7+ {[%clk 0:02:17]}  Qxd7 {[%clk 0:02:36]} 16. Qe3 {[%clk 0:02:17]}  Be7 {[%clk 0:02:31]} 17. a4 {[%clk 0:02:12]}  O-O {[%clk 0:02:30]} 18. O-O {[%clk 0:02:07]}  f5 {[%clk 0:02:29]} 19. f3 {[%clk 0:01:54]}  Rfc8 {[%clk 0:02:19]} 20. c3 {[%clk 0:01:45]}  f4 {[%clk 0:02:12]} 21. Qb6 {[%clk 0:01:32]}  Rxc3 {[%clk 0:02:11]} 22. Rfc1 {[%clk 0:01:32]}  Rxc1+ {[%clk 0:02:04]} 23. Rxc1 {[%clk 0:01:33]}  Qxa4 {[%clk 0:02:05]} 24. Rc7 {[%clk 0:01:11]}  Qa1+ {[%clk 0:01:37]} 25. Kf2 {[%clk 0:01:10]}  Rxa7 {[%clk 0:01:37]} 26. Rc2 {[%clk 0:00:56]}  Qd4+ {[%clk 0:01:30]} 27. Qxd4 {[%clk 0:00:55]}  exd4 {[%clk 0:01:31]} 28. Ke2 {[%clk 0:00:56]}  Ra3 {[%clk 0:01:29]} 29. Rc7 {[%clk 0:00:55]}  Bf6 {[%clk 0:01:26]} 30. Rxb7 {[%clk 0:00:56]}  d3+ {[%clk 0:01:25]} 31. Kd2 {[%clk 0:00:44]}  Bd4 {[%clk 0:01:26]} 0-1


[Site "https://www.chess.com"]

[Event "Titled Tuesday Blitz May 23 Early 2023"]
[White "Ilamparthi A R"]
[Black "Omelja, Artem"]
[WhiteFideId "45015775"]
[BlackFideId "14119846"]
[WhiteElo "2348"]
[BlackElo "2404"]
[Result "0-1"]
[Round "02"]
[TimeControl "180+2"]
[Date "2023.05.23"]
[WhiteClock "0:00:18"]
[BlackClock "0:01:10"]

1. e4 {[%clk 0:02:56]}  c5 {[%clk 0:02:59]} 2. Nf3 {[%clk 0:02:56]}  Nc6 {[%clk 0:03:00]} 3. b4 {[%clk 0:02:55]}  cxb4 {[%clk 0:02:57]} 4. d4 {[%clk 0:02:55]}  d5 {[%clk 0:02:58]} 5. exd5 {[%clk 0:02:56]}  Qxd5 {[%clk 0:02:58]} 6. c4 {[%clk 0:02:56]}  bxc3 {[%clk 0:02:58]} 7. Nxc3 {[%clk 0:02:56]}  Qa5 {[%clk 0:02:56]} 8. d5 {[%clk 0:02:56]}  Qxc3+ {[%clk 0:02:31]} 9. Bd2 {[%clk 0:02:56]}  Qa3 {[%clk 0:02:26]} 10. dxc6 {[%clk 0:02:55]}  bxc6 {[%clk 0:02:26]} 11. Qc2 {[%clk 0:02:42]}  Bd7 {[%clk 0:02:16]} 12. Ne5 {[%clk 0:02:34]}  Qd6 {[%clk 0:02:16]} 13. Nxd7 {[%clk 0:02:09]}  Qxd7 {[%clk 0:02:16]} 14. Rd1 {[%clk 0:01:59]}  Nf6 {[%clk 0:02:14]} 15. Be3 {[%clk 0:01:44]}  Nd5 {[%clk 0:02:12]} 16. Qe4 {[%clk 0:01:37]}  e6 {[%clk 0:02:09]} 17. Bd3 {[%clk 0:01:23]}  Nc3 {[%clk 0:01:55]} 18. Qf3 {[%clk 0:00:56]}  Nxd1 {[%clk 0:01:54]} 19. Qxd1 {[%clk 0:00:56]}  Rd8 {[%clk 0:01:45]} 20. Ke2 {[%clk 0:00:54]}  Be7 {[%clk 0:01:43]} 21. Qc2 {[%clk 0:00:54]}  h6 {[%clk 0:01:37]} 22. Rd1 {[%clk 0:00:50]}  Qc7 {[%clk 0:01:37]} 23. Rc1 {[%clk 0:00:47]}  O-O {[%clk 0:01:32]} 24. Qxc6 {[%clk 0:00:47]}  Qxh2 {[%clk 0:01:27]} 25. Bxa7 {[%clk 0:00:39]}  Qh5+ {[%clk 0:01:21]} 26. f3 {[%clk 0:00:32]}  Qa5 {[%clk 0:01:20]} 27. Qe4 {[%clk 0:00:18]}  Rxd3 {[%clk 0:01:10]} 0-1


[Site "https://www.chess.com"]

[Event "Titled Tuesday Blitz May 23 Early 2023"]
[White "Hayrapetyan, Hovik"]
[Black "Gontcharov, Vladislav"]
[WhiteFideId "13302639"]
[BlackFideId "4123492"]
[WhiteElo "2348"]
[BlackElo "2420"]
[Result "1-0"]
[Round "02"]
[TimeControl "180+2"]
[Date "2023.05.23"]
[WhiteClock "0:02:04"]
[BlackClock "0:00:23"]

1. d4 {[%clk 0:03:00]}  Nf6 {[%clk 0:02:59]} 2. c4 {[%clk 0:03:00]}  e6 {[%clk 0:02:59]} 3. Nc3 {[%clk 0:03:00]}  Bb4 {[%clk 0:02:58]} 4. Nf3 {[%clk 0:03:01]}  O-O {[%clk 0:02:57]} 5. Bg5 {[%clk 0:03:00]}  h6 {[%clk 0:02:56]} 6. Bh4 {[%clk 0:03:01]}  c5 {[%clk 0:02:51]} 7. Rc1 {[%clk 0:03:01]}  cxd4 {[%clk 0:02:17]} 8. Nxd4 {[%clk 0:03:02]}  d5 {[%clk 0:02:15]} 9. cxd5 {[%clk 0:03:00]}  Qxd5 {[%clk 0:02:13]} 10. Bxf6 {[%clk 0:02:59]}  gxf6 {[%clk 0:02:13]} 11. a3 {[%clk 0:02:59]}  Bxc3+ {[%clk 0:02:12]} 12. Rxc3 {[%clk 0:03:00]}  f5 {[%clk 0:02:03]} 13. Qd2 {[%clk 0:02:55]}  Kg7 {[%clk 0:01:25]} 14. Rg3+ {[%clk 0:02:52]}  Kf6 {[%clk 0:01:22]} 15. Qxh6+ {[%clk 0:02:43]}  Ke7 {[%clk 0:01:23]} 16. Qh4+ {[%clk 0:02:27]}  Ke8 {[%clk 0:01:16]} 17. Rd3 {[%clk 0:02:15]}  Qa5+ {[%clk 0:01:16]} 18. b4 {[%clk 0:02:06]}  Qc7 {[%clk 0:01:09]} 19. Nb5 {[%clk 0:02:05]}  Qe7 {[%clk 0:00:23]} 20. Nd6+ {[%clk 0:02:04]} 1-0


[Site "https://www.chess.com"]

[Event "Titled Tuesday Blitz May 23 Early 2023"]
[White "Averjanov, Alexey"]
[Black "Sukandar, Irine Kharisma"]
[WhiteFideId "14109867"]
[BlackFideId "7101937"]
[WhiteElo "2765"]
[BlackElo "2315"]
[Result "1-0"]
[Round "02"]
[TimeControl "180+2"]
[Date "2023.05.23"]
[WhiteClock "0:00:09"]
[BlackClock "0:00:05"]

1. d4 {[%clk 0:03:00]}  d5 {[%clk 0:02:57]} 2. c4 {[%clk 0:03:01]}  e6 {[%clk 0:02:56]} 3. Nf3 {[%clk 0:02:59]}  Nf6 {[%clk 0:02:56]} 4. e3 {[%clk 0:02:59]}  b6 {[%clk 0:02:38]} 5. Nbd2 {[%clk 0:02:59]}  Bd6 {[%clk 0:02:33]} 6. Bd3 {[%clk 0:02:59]}  O-O {[%clk 0:02:33]} 7. O-O {[%clk 0:02:59]}  Bb7 {[%clk 0:02:33]} 8. Qe2 {[%clk 0:02:59]}  Nbd7 {[%clk 0:02:26]} 9. e4 {[%clk 0:02:59]}  dxe4 {[%clk 0:02:26]} 10. Nxe4 {[%clk 0:02:59]}  Nxe4 {[%clk 0:02:26]} 11. Bxe4 {[%clk 0:03:00]}  Bxe4 {[%clk 0:02:26]} 12. Qxe4 {[%clk 0:03:01]}  Qe7 {[%clk 0:02:05]} 13. b3 {[%clk 0:02:59]}  e5 {[%clk 0:01:59]} 14. dxe5 {[%clk 0:02:57]}  Nxe5 {[%clk 0:01:59]} 15. Bb2 {[%clk 0:02:51]}  Nxf3+ {[%clk 0:01:48]} 16. Qxf3 {[%clk 0:02:52]}  Qh4 {[%clk 0:01:47]} 17. g3 {[%clk 0:02:46]}  Qg5 {[%clk 0:01:46]} 18. Rfe1 {[%clk 0:02:43]}  Rae8 {[%clk 0:01:44]} 19. Re2 {[%clk 0:02:23]}  Rxe2 {[%clk 0:01:28]} 20. Qxe2 {[%clk 0:02:24]}  h5 {[%clk 0:01:28]} 21. Re1 {[%clk 0:02:17]}  h4 {[%clk 0:01:26]} 22. Kg2 {[%clk 0:02:18]}  Rd8 {[%clk 0:01:17]} 23. Qe4 {[%clk 0:02:02]}  hxg3 {[%clk 0:01:04]} 24. hxg3 {[%clk 0:02:03]}  a5 {[%clk 0:00:59]} 25. Rh1 {[%clk 0:02:01]}  Qg6 {[%clk 0:00:52]} 26. Qh4 {[%clk 0:01:56]}  f6 {[%clk 0:00:41]} 27. Qh8+ {[%clk 0:01:42]}  Kf7 {[%clk 0:00:41]} 28. Qxd8 {[%clk 0:01:42]}  Qe4+ {[%clk 0:00:41]} 29. Kg1 {[%clk 0:01:13]}  Qb1+ {[%clk 0:00:40]} 30. Bc1 {[%clk 0:01:07]}  Qxc1+ {[%clk 0:00:35]} 31. Kg2 {[%clk 0:01:07]}  Qc2 {[%clk 0:00:23]} 32. Qd7+ {[%clk 0:01:01]}  Kg6 {[%clk 0:00:23]} 33. Qe8+ {[%clk 0:00:55]}  Kf5 {[%clk 0:00:22]} 34. Re1 {[%clk 0:00:34]}  Kg5 {[%clk 0:00:15]} 35. Qe3+ {[%clk 0:00:31]}  Kg6 {[%clk 0:00:13]} 36. Qe4+ {[%clk 0:00:30]}  Qxe4+ {[%clk 0:00:13]} 37. Rxe4 {[%clk 0:00:31]}  Kf5 {[%clk 0:00:13]} 38. Re2 {[%clk 0:00:30]}  g5 {[%clk 0:00:07]} 39. f3 {[%clk 0:00:30]}  g4 {[%clk 0:00:06]} 40. fxg4+ {[%clk 0:00:28]}  Kxg4 {[%clk 0:00:06]} 41. Re4+ {[%clk 0:00:28]}  Kf5 {[%clk 0:00:06]} 42. Kf3 {[%clk 0:00:28]}  Bxg3 {[%clk 0:00:05]} 43. Re8 {[%clk 0:00:20]}  Be5 {[%clk 0:00:04]} 44. Rc8 {[%clk 0:00:17]}  Bd6 {[%clk 0:00:05]} 45. a3 {[%clk 0:00:16]}  Be5 {[%clk 0:00:03]} 46. b4 {[%clk 0:00:15]}  axb4 {[%clk 0:00:03]} 47. axb4 {[%clk 0:00:16]}  Bd6 {[%clk 0:00:03]} 48. b5 {[%clk 0:00:15]}  Be5 {[%clk 0:00:03]} 49. Ke3 {[%clk 0:00:13]}  Bd6 {[%clk 0:00:03]} 50. Rh8 {[%clk 0:00:13]}  Ke6 {[%clk 0:00:03]} 51. Ke4 {[%clk 0:00:11]}  Bc5 {[%clk 0:00:02]} 52. Rh6 {[%clk 0:00:10]}  Bd6 {[%clk 0:00:03]} 53. Rg6 {[%clk 0:00:10]}  Be5 {[%clk 0:00:03]} 54. Rh6 {[%clk 0:00:08]}  Bd6 {[%clk 0:00:03]} 55. Rh5 {[%clk 0:00:09]}  Be5 {[%clk 0:00:03]} 56. Rf5 {[%clk 0:00:09]}  Bd6 {[%clk 0:00:03]} 57. Rd5 {[%clk 0:00:09]}  Be5 {[%clk 0:00:03]} 58. Kf3 {[%clk 0:00:07]}  Bd6 {[%clk 0:00:03]} 59. Kg4 {[%clk 0:00:07]}  Be5 {[%clk 0:00:03]} 60. Kh5 {[%clk 0:00:08]}  Bd6 {[%clk 0:00:04]} 61. Kg6 {[%clk 0:00:08]}  Be5 {[%clk 0:00:04]} 62. Rd3 {[%clk 0:00:08]}  Bd6 {[%clk 0:00:04]} 63. Rd5 {[%clk 0:00:08]}  Be5 {[%clk 0:00:05]} 64. Rd8 {[%clk 0:00:08]}  Bd6 {[%clk 0:00:05]} 65. Re8+ {[%clk 0:00:08]}  Kd7 {[%clk 0:00:05]} 66. Kf7 {[%clk 0:00:08]}  Be5 {[%clk 0:00:05]} 67. Re6 {[%clk 0:00:06]}  Bd4 {[%clk 0:00:05]} 68. Rc6 {[%clk 0:00:05]}  Be5 {[%clk 0:00:06]} 69. Re6 {[%clk 0:00:05]}  Bd4 {[%clk 0:00:06]} 70. Rc6 {[%clk 0:00:05]}  Be5 {[%clk 0:00:06]} 71. Kg6 {[%clk 0:00:05]}  Bd4 {[%clk 0:00:06]} 72. Kf5 {[%clk 0:00:06]}  Be5 {[%clk 0:00:06]} 73. Ke4 {[%clk 0:00:06]}  Bc3 {[%clk 0:00:06]} 74. Kd5 {[%clk 0:00:07]}  Be5 {[%clk 0:00:06]} 75. Re6 {[%clk 0:00:07]}  Bc3 {[%clk 0:00:06]} 76. Re2 {[%clk 0:00:07]}  Be5 {[%clk 0:00:06]} 77. Rg2 {[%clk 0:00:07]}  Bc3 {[%clk 0:00:07]} 78. Rg7+ {[%clk 0:00:07]}  Kd8 {[%clk 0:00:04]} 79. Kc6 {[%clk 0:00:07]}  Be5 {[%clk 0:00:04]} 80. Rf7 {[%clk 0:00:08]}  Ke8 {[%clk 0:00:04]} 81. Rh7 {[%clk 0:00:07]}  Kd8 {[%clk 0:00:04]} 82. Rg7 {[%clk 0:00:07]}  Ke8 {[%clk 0:00:05]} 83. Kd5 {[%clk 0:00:06]}  Kf8 {[%clk 0:00:05]} 84. Rd7 {[%clk 0:00:06]}  Ke8 {[%clk 0:00:05]} 85. Ke6 {[%clk 0:00:06]}  Kf8 {[%clk 0:00:04]} 86. Rd8+ {[%clk 0:00:05]}  Kg7 {[%clk 0:00:05]} 87. Rd3 {[%clk 0:00:05]}  Kg6 {[%clk 0:00:04]} 88. Rd5 {[%clk 0:00:06]}  Kg5 {[%clk 0:00:05]} 89. Rxe5+ {[%clk 0:00:05]}  fxe5 {[%clk 0:00:05]} 90. Kxe5 {[%clk 0:00:06]}  Kg4 {[%clk 0:00:04]} 91. Kd5 {[%clk 0:00:07]}  Kf4 {[%clk 0:00:04]} 92. Kc6 {[%clk 0:00:07]}  Ke4 {[%clk 0:00:05]} 93. Kxc7 {[%clk 0:00:08]}  Kd4 {[%clk 0:00:06]} 94. Kxb6 {[%clk 0:00:08]}  Kxc4 {[%clk 0:00:05]} 95. Kc6 {[%clk 0:00:09]} 1-0


[Site "https://www.chess.com"]

[Event "Titled Tuesday Blitz May 23 Early 2023"]
[White "Janaszak, Dawid"]
[Black "Tatarinov, Dmitry"]
[WhiteFideId "1119206"]
[BlackFideId "24160067"]
[WhiteElo "2220"]
[BlackElo "2326"]
[Result "0-1"]
[Round "02"]
[TimeControl "180+2"]
[Date "2023.05.23"]
[WhiteClock "0:00:00"]
[BlackClock "0:01:39"]

1. e4 {[%clk 0:02:58]}  c5 {[%clk 0:02:59]} 2. Nc3 {[%clk 0:02:58]}  d6 {[%clk 0:03:00]} 3. f4 {[%clk 0:02:57]}  Nc6 {[%clk 0:03:00]} 4. Nf3 {[%clk 0:02:58]}  Nf6 {[%clk 0:02:56]} 5. Bc4 {[%clk 0:02:57]}  e6 {[%clk 0:02:57]} 6. O-O {[%clk 0:02:56]}  a6 {[%clk 0:02:57]} 7. d3 {[%clk 0:02:52]}  b5 {[%clk 0:02:57]} 8. Bb3 {[%clk 0:02:52]}  c4 {[%clk 0:02:50]} 9. dxc4 {[%clk 0:02:39]}  b4 {[%clk 0:02:50]} 10. Na4 {[%clk 0:02:03]}  Nxe4 {[%clk 0:02:46]} 11. Qe1 {[%clk 0:01:57]}  f5 {[%clk 0:02:34]} 12. Ng5 {[%clk 0:01:48]}  Nxg5 {[%clk 0:02:28]} 13. fxg5 {[%clk 0:01:49]}  Be7 {[%clk 0:02:29]} 14. c5 {[%clk 0:01:45]}  d5 {[%clk 0:02:27]} 15. Qg3 {[%clk 0:01:21]}  O-O {[%clk 0:02:25]} 16. g6 {[%clk 0:01:19]}  hxg6 {[%clk 0:02:23]} 17. Qxg6 {[%clk 0:01:16]}  Ne5 {[%clk 0:02:10]} 18. Qh5 {[%clk 0:01:14]}  Bd7 {[%clk 0:02:07]} 19. Bf4 {[%clk 0:01:06]}  Ng4 {[%clk 0:02:04]} 20. h3 {[%clk 0:00:50]}  Nf6 {[%clk 0:02:03]} 21. Qe2 {[%clk 0:00:46]}  Ne4 {[%clk 0:02:00]} 22. Kh2 {[%clk 0:00:30]}  Bb5 {[%clk 0:02:00]} 23. Qe3 {[%clk 0:00:27]}  Bxa4 {[%clk 0:02:00]} 24. Bxa4 {[%clk 0:00:25]}  Bxc5 {[%clk 0:02:00]} 25. Qe2 {[%clk 0:00:21]}  Bd6 {[%clk 0:02:01]} 26. g3 {[%clk 0:00:15]}  Bxf4 {[%clk 0:01:58]} 27. gxf4 {[%clk 0:00:16]}  Qh4 {[%clk 0:01:56]} 28. Rf3 {[%clk 0:00:15]}  Rf6 {[%clk 0:01:53]} 29. Rg1 {[%clk 0:00:14]}  Kf7 {[%clk 0:01:48]} 30. Qg2 {[%clk 0:00:14]}  g5 {[%clk 0:01:43]} 31. fxg5 {[%clk 0:00:13]}  Rg8 {[%clk 0:01:43]} 32. Qe2 {[%clk 0:00:06]}  Rxg5 {[%clk 0:01:42]} 33. Rxg5 {[%clk 0:00:06]}  Qxg5 {[%clk 0:01:39]} 34. Qxa6 {[%clk 0:00:06]}  Rg6 {[%clk 0:01:39]} 35. Qb7+ {[%clk 0:00:00]}  Kf6 {[%clk 0:01:39]} 0-1


[Site "https://www.chess.com"]